fUSD/lending_fUSD_20250407
["ID","MTS","AMOUNT","RATE_DAILY","PERIOD"]
[357419958,1744054192870,-800.0,0.000197,7]
[357419959,1744054192898,-7499.35668194,0.00019849,2]
[357419960,1744054192926,-8005.55629641,0.00019866,2]
[357419961,1744054192955,-8005.55629641,0.00019883,2]
[357419962,1744054192983,-8005.55629641,0.000199,2]
[357419963,1744054193009,-254.00724409,0.000199,3]
[357419964,1744054193035,-8005.55629641,0.00019916,2]
[357419965,1744054193062,-8005.55629641,0.00019933,2]
[357419966,1744054193088,-2466.48067742,0.0001995,2]
[357419967,1744054193118,-328.08673382,0.0001995,2]
[357419968,1744054193145,-8005.55629641,0.0001995,2]
[357419969,1744054193174,-500.0,0.00019973,2]
[357419970,1744054193201,-850.0,0.00019999,2]
[357419971,1744054193222,-500.0,0.0002,2]
[357419972,1744054193234,-800.0,0.0002,2]
[357419973,1744054193245,-7499.35668194,0.0002,2]
[357419974,1744054193256,-8005.55629641,0.0002,2]
[357419975,1744054193282,-8005.55629641,0.0002,2]
[357419976,1744054193297,-8005.55629641,0.0002,2]
[357419977,1744054193317,-254.00724409,0.000198,7]
[357419978,1744054193333,-845.99275591,0.000198,7]
[357419979,1744054193344,-7159.5635405,0.0002,2]
[357419980,1744054193355,-8005.55629641,0.0002,2]
[357419981,1744054193367,-2466.48067742,0.0002,2]
[357419982,1744054193379,-328.08673382,0.0002,2]
[357419983,1744054193391,-8005.55629641,0.0002,2]
[357419984,1744054193402,-500.0,0.0002,2]
[357419985,1744054193421,-850.0,0.0002,2]
[357419986,1744054193437,-1058611.46176854,0.0002,2]
[357419992,1744054232479,-0.10040992,0.00019766,2]
[357419993,1744054232518,-974.34433458,0.00019766,2]
[357419994,1744054232528,-377.0,0.00019863,2]
[357419995,1744054232539,-291.26119028,0.000199,7]
[357419996,1744054232551,-1108.73880972,0.000199,7]
[357419997,1744054232561,-100.00971498,0.000199,2]
[357419999,1744054232573,-145.15418246,0.000199,2]
[357420001,1744054232585,-609.6593,0.000199,2]
[357420002,1744054232596,-204.88326098,0.0001995,12]
[357420045,1744054232892,-145.11673902,0.0001995,12]
[357420047,1744054232904,-250.0,0.0001995,2]
[357420049,1744054232914,-207.14271991,0.0001999,2]
[357420051,1744054232925,-207.14271991,0.0001999,2]
[357420053,1744054232935,-300.0,0.00019999,2]
[357420055,1744054232945,-670.34281598,0.00019999,2]
[357420057,1744054232955,-2239.17617109,0.0002,2]
[357420059,1744054232968,-18200.44912932,0.0002,2]
[357420068,1744054233041,-1277.84153999,0.0002,2]
[357420075,1744054233103,-1247.11792128,0.0002,2]
[357420205,1744054238433,-11773.0596,0.0002,2]
[357420206,1744054238489,-89819.43915283,0.0002,2]
[357420207,1744054238658,-821433.91408425,0.0002,2]
[357420208,1744054238671,-480768.57974648,0.0002,2]
[357420278,1744054240394,-854.67223147,0.0002,2]
[357420279,1744054240407,-313.388,0.0002,2]
[357420280,1744054240444,-552.31242,0.0002,2]
[357420281,1744054240457,-901.4202829,0.0002,2]
[357420306,1744054241094,-0.07976587,0.0002,2]
[357420314,1744054241158,-28045.56432323,0.0002,2]
[357420316,1744054241170,-15956.24166235,0.0002,2]
[357420328,1744054241276,-27943.96233794,0.0002,2]
[357420330,1744054241288,-758.79327156,0.0002,2]
[357420332,1744054241300,-357.44293098,0.0002,2]
[357420335,1744054241313,-516.6712998,0.0002,2]
[357420337,1744054241325,-545.7393,0.0002,2]
[357420396,1744054243317,-621.448,0.0002,2]
[357420397,1744054243374,-2031.10627002,0.0002,2]
[357420408,1744054244077,-2435.64270751,0.0002,2]
[357420409,1744054244089,-1806.49803386,0.0002,2]
[357420410,1744054244134,-5733.94259137,0.0002,2]
[357420444,1744054244723,-13601.93912539,0.0002,2]
[357420446,1744054244741,-4699.22134211,0.0002,2]
[357420449,1744054244757,-6660.35750267,0.0002,2]
[357420452,1744054244774,-723.68174403,0.0002,2]
[357420454,1744054244787,-17411.33200117,0.0002,2]
[357420456,1744054244800,-294.14994472,0.0002,2]
[357420457,1744054244812,-698.384581,0.0002,2]
[357420458,1744054244824,-435.50221154,0.0002,2]
[357420459,1744054244846,-598049.55708753,0.0002,2]
[357420460,1744054244858,-9076.30988652,0.0002,2]
[357420461,1744054244870,-267836.96529359,0.0002,2]
[357420462,1744054244881,-12963.78899468,0.0002,2]
[357420463,1744054244895,-7041.00100985,0.0002,2]
[357420488,1744054246296,-1316.65614488,0.0002,2]
[357420493,1744054246355,-2546.89571737,0.0002,2]
[357420495,1744054246367,-398.46941812,0.0002,2]
[357420496,1744054246413,-6017.58238913,0.0002,2]
[357420497,1744054246426,-19261.79450107,0.0002,2]
[357420499,1744054246439,-16510.946959,0.0002,2]
[357420504,1744054246481,-3174.54812985,0.0002,2]
[357420506,1744054246493,-8681.75599626,0.0002,2]
[357420508,1744054246597,-1843.65503833,0.0002,2]
[357420509,1744054246609,-1518.67982264,0.0002,2]
[357420510,1744054246621,-1494.35,0.0002,2]
[357420573,1744054334511,500.0,0.00042891,30]
[357420574,1744054335110,518.5,0.00042891,30]
[357420575,1744054335722,537.6845,0.00042891,30]
[357420576,1744054336526,-500.0,0.00019973,2]
[357420577,1744054336864,557.5788265,0.00042891,30]
[357420578,1744054337491,557.5788265,0.00042891,30]
[357420580,1744054347812,200.0,0.00042891,30]
[357420581,1744054348491,207.4,0.00042891,30]
[357420582,1744054348981,969.56,0.00033,120]
[357420583,1744054349267,215.0738,0.00042891,30]
[357420584,1744054349839,223.0315306,0.00042891,30]
[357420585,1744054350436,231.28369723,0.00042891,30]
[357420586,1744054351056,239.84119403,0.00042891,30]
[357420587,1744054351680,248.71531821,0.00042891,30]
[357420588,1744054352307,257.91778498,0.00042891,30]
[357420589,1744054353045,267.46074303,0.00042891,30]
[357420590,1744054353601,277.35679052,0.00042891,30]
[357420591,1744054354252,287.61899177,0.00042891,30]
[357420592,1744054354861,298.26089446,0.00042891,30]
[357420593,1744054355480,309.29654756,0.00042891,30]
[357420594,1744054356091,320.74051982,0.00042891,30]
[357420595,1744054356731,332.60791905,0.00042891,30]
[357420596,1744054357348,344.91441206,0.00042891,30]
[357420597,1744054358532,357.6762453,0.00042891,30]
[357420598,1744054359172,370.91026638,0.00042891,30]
[357420599,1744054360375,384.63394623,0.00042891,30]
[357420600,1744054361020,384.63394623,0.00042891,30]
[357420601,1744054366708,-5183.29374673,0.000199,2]
[357420602,1744054366744,-816.56852877,0.000199,2]
[357420603,1744054366774,-1120.02401484,0.00019999,5]
[357420604,1744054380394,-169.48,0.00018628,2]
[357420605,1744054380423,-400.0,0.000197,7]
[357420606,1744054380450,-800.0,0.000198,7]
[357420607,1744054380477,-2246.202188,0.000199,2]
[357420608,1744054380506,-1200.0,0.000199,7]
[357420609,1744054380647,-18673.59392759,0.0002,2]
[357420610,1744054394535,-2002.15780124,0.00019641,2]
[357420611,1744054394575,-2495.68439752,0.00019641,2]
[357420612,1744054464616,1066.0,0.00042849,30]
[357420613,1744054469333,1066.0,0.00042849,30]
[357420614,1744054473173,1066.0,0.00042849,30]
[357420615,1744054477061,1066.0,0.00042849,30]
[357420616,1744054480825,1116.2387412,0.00042849,30]
[357420617,1744054502376,-7132.886626,0.00019799,2]
[357420618,1744054502400,-205.66576317,0.000199,2]
[357420619,1744054502424,-556.0,0.00019999,2]
[357420620,1744054502452,-713105.44761083,0.0002,2]
[357420621,1744054646337,-3878.95042467,0.00019873,2]
[357420622,1744054646362,-300.0,0.00019899,2]
[357420623,1744054646386,-410.54048943,0.000199,2]
[357420624,1744054646410,-234.01549177,0.000199,2]
[357420625,1744054646433,-3007.45096504,0.000199,2]
[357420626,1744054646456,-264.92067383,0.00019973,2]
[357420627,1744054646481,-500.0,0.00019973,2]
[357420628,1744054646504,-503.54707972,0.00019973,2]
[357420629,1744054646526,-500.0,0.00019973,2]
[357420630,1744054646550,-500.0,0.00019973,2]
[357420631,1744054646574,-500.0,0.00019973,2]
[357420632,1744054646599,-14840.03494509,0.0001999,2]
[357420633,1744054646626,-150.0,0.00019999,2]
[357420634,1744054646654,-144410.53993045,0.0002,2]
[357420635,1744054716646,-4278.172,0.000196,2]
[357420636,1744054716668,-188.661,0.000196,2]
[357420637,1744054716690,-163.68300249,0.000199,2]
[357420638,1744054716712,-201.31367589,0.000199,2]
[357420639,1744054716734,-250.0,0.0001995,2]
[357420640,1744054716755,-300.0,0.00019999,2]
[357420641,1744054716780,-244618.17032162,0.0002,2]
[357420642,1744054724987,-250000.0,0.0002,2]
[357420643,1744054730295,-817.99218711,0.000195,2]
[357420644,1744054730320,-182.00781289,0.0002,2]
[357420645,1744054730614,-1000.0,0.0002,2]
[357420646,1744054731168,-1000.0,0.0002,2]
[357420647,1744054731646,-1000.0,0.0002,2]
[357420648,1744054731974,-1000.0,0.0002,2]
[357420649,1744054732290,-1000.0,0.0002,2]
[357420650,1744054732649,-1000.0,0.0002,2]
[357420651,1744054733116,-1000.0,0.0002,2]
[357420652,1744054733431,-1000.0,0.0002,2]
[357420653,1744054733765,-1000.0,0.0002,2]
[357420654,1744054741823,-1000.0,0.0002,2]
[357420655,1744054743286,-761.0,0.00019999,2]
[357420656,1744054743312,-239.0,0.0002,2]
[357420657,1744054743751,-505.54285196,0.00019973,2]
[357420658,1744054743776,-494.45714804,0.0002,2]
[357420659,1744054744113,-1000.0,0.0002,2]
[357420660,1744054744750,-1000.0,0.0002,2]
[357420661,1744054745254,-1000.0,0.0002,2]
[357420662,1744054745878,-1000.0,0.0002,2]
[357420663,1744054746316,-1000.0,0.0002,2]
[357420664,1744054746953,-1000.0,0.0002,2]
[357420665,1744054747546,-206.73987428,0.00019973,2]
[357420666,1744054747572,-793.26012572,0.0002,2]
[357420667,1744054747713,-1000.0,0.0002,2]
[357420668,1744054748474,-1000.0,0.0002,2]
[357420669,1744054748901,-1000.0,0.0002,2]
[357420670,1744054749839,-1000.0,0.0002,2]
[357420671,1744054750281,-1000.0,0.0002,2]
[357420672,1744054751279,-1000.0,0.0002,2]
[357420673,1744054759131,-200000.0,0.0002,2]
[357420674,1744054767734,-835.0,0.0002,2]
[357420675,1744054827549,176.0,0.00042836,30]
[357420676,1744054834781,-1290.293648,0.000199,2]
[357420677,1744054834805,-350.0,0.00019949,12]
[357420678,1744054834832,-300.0,0.00019999,2]
[357420679,1744054834857,-89959.706352,0.0002,2]
[357420680,1744054838793,150.0,0.00027,120]
[357420681,1744054839122,150.0,0.000323,120]
[357420682,1744054862222,1500.0,0.00032877,120]
[357420683,1744054888349,8362.104,0.00042836,30]
[357420684,1744054942776,200.0,0.00042836,30]
[357420685,1744054943976,207.4,0.00042836,30]
[357420686,1744054944648,215.0738,0.00042836,30]
[357420687,1744054945288,223.0315306,0.00042836,30]
[357420688,1744054946042,231.28369723,0.00042836,30]
[357420689,1744054946884,239.84119403,0.00042836,30]
[357420690,1744054947462,248.71531821,0.00042836,30]
[357420691,1744054948392,257.91778498,0.00042836,30]
[357420692,1744054948729,267.46074303,0.00042836,30]
[357420693,1744054949374,277.35679052,0.00042836,30]
[357420694,1744054949996,287.61899177,0.00042836,30]
[357420695,1744054950630,298.26089446,0.00042836,30]
[357420696,1744054951548,309.29654756,0.00042836,30]
[357420697,1744054951872,320.74051982,0.00042836,30]
[357420698,1744054952827,332.60791905,0.00042836,30]
[357420699,1744054953378,344.91441206,0.00042836,30]
[357420700,1744054953772,357.6762453,0.00042836,30]
[357420701,1744054954401,370.91026638,0.00042836,30]
[357420702,1744054955127,384.63394623,0.00042836,30]
[357420703,1744054955767,384.63394623,0.00042836,30]
[357420704,1744055143131,-250.0,0.00019,2]
[357420705,1744055143153,-717.15910474,0.000199,2]
[357420706,1744055143175,-198.79959918,0.00019999,2]
[357420707,1744055148091,-101.20040082,0.00019999,2]
[357420708,1744055148112,-479.0,0.00019999,2]
[357420709,1744055148138,-50936.21807379,0.0002,2]
[357420710,1744055232139,-14114.37516192,0.0002,2]
[357420711,1744055234146,-151.92086415,0.0002,2]
[357420712,1744055240099,-13238.47823992,0.0002,2]
[357420713,1744055240122,-2000.0,0.0002,4]
[357420714,1744055240145,-314.9863603,0.0002,2]
[357420715,1744055240168,-250.0,0.0002,2]
[357420716,1744055240190,-10969.5720892,0.00020886,2]
[357420717,1744055240213,-2706.70586859,0.00020886,2]
[357420718,1744055240235,-250.0,0.000209,2]
[357420719,1744055240257,-159250.86583192,0.00020986,2]
[357420720,1744055241789,200.0,0.00042845,30]
[357420721,1744055242095,-1434.02568429,0.00020986,2]
[357420722,1744055242402,207.4,0.00042845,30]
[357420723,1744055243027,215.0738,0.00042845,30]
[357420724,1744055243650,223.0315306,0.00042845,30]
[357420725,1744055244275,231.28369723,0.00042845,30]
[357420726,1744055244891,239.84119403,0.00042845,30]
[357420727,1744055245507,248.71531821,0.00042845,30]
[357420728,1744055246184,257.91778498,0.00042845,30]
[357420729,1744055246797,267.46074303,0.00042845,30]
[357420730,1744055247417,277.35679052,0.00042845,30]
[357420731,1744055247461,-350.0,0.0002189,12]
[357420732,1744055247497,-350.0,0.00022,12]
[357420733,1744055248070,287.61899177,0.00042845,30]
[357420734,1744055248760,298.26089446,0.00042845,30]
[357420735,1744055249364,309.29654756,0.00042845,30]
[357420736,1744055250017,320.74051982,0.00042845,30]
[357420737,1744055250647,332.60791905,0.00042845,30]
[357420738,1744055251500,344.91441206,0.00042845,30]
[357420739,1744055251861,357.6762453,0.00042845,30]
[357420740,1744055252498,370.91026638,0.00042845,30]
[357420741,1744055253629,384.63394623,0.00042845,30]
[357420742,1744055254247,384.63394623,0.00042845,30]
[357420743,1744055297407,533.36,0.00025469,120]
[357420744,1744055297893,533.36,0.00028299,120]
[357420745,1744055298105,533.36,0.00031129,120]
[357420746,1744055329808,-828.0,0.00020986,2]
[357420747,1744055343000,-200.0,0.00022123,7]
[357420748,1744055353100,-195.073116,0.00019978,2]
[357420749,1744055361127,-1726.256884,0.00019978,2]
[357420750,1744055361151,-300.0,0.00020985,2]
[357420751,1744055361173,-250.0,0.00020993,2]
[357420752,1744055361196,-300.0,0.00021,2]
[357420753,1744055361218,-11150.656036,0.00021421,2]
[357420754,1744055371244,-400.0,0.000249,9]
[357420755,1744055403341,220.62,0.00025799,30]
[357420756,1744055410830,457.4651,0.00022274,10]
[357420771,1744055431376,-407.0,0.00021421,2]
[357420790,1744055431970,-289.89542101,0.00021421,2]
[357420859,1744055432625,-35.98130711,0.00021421,2]
[357420865,1744055432679,-11938.90752962,0.00021421,2]
[357420867,1744055432689,-590.80299341,0.00021509,2]
[357420869,1744055432699,-160.48,0.00021609,2]
[357420871,1744055432709,-18504.60200867,0.00021634,2]
[357420923,1744055437396,-5395.39799133,0.00021634,2]
[357420924,1744055437407,-500.0,0.00021692,2]
[357420925,1744055437417,-500.0,0.00021721,3]
[357420926,1744055437427,-1214.61,0.00021726,2]
[357420927,1744055437437,-184.48,0.00021734,2]
[357420928,1744055437446,-1622.09195506,0.00021835,2]
[357420929,1744055437466,-690.03568795,0.00021835,2]
[357420930,1744055437478,-316.93927259,0.00021835,2]
[357420931,1744055437489,-371.44753999,0.00021835,2]
[357420932,1744055437500,-468.40396298,0.00021835,2]
[357420933,1744055437747,-1.93829244,0.00021835,2]
[357420934,1744055437759,-5451.70328899,0.00021835,2]
[357420935,1744055437769,-165.05,0.00021917,2]
[357420937,1744055437778,-343.95,0.00021918,2]
[357420939,1744055437788,-423.22308963,0.00021995,2]
[357420946,1744055437863,-2068.26390666,0.00021995,2]
[357420948,1744055437875,-1942.4,0.00021995,2]
[357420952,1744055437905,-1494.52469409,0.00021995,2]
[357420954,1744055437917,-152.66355039,0.00022,3]
[357420956,1744055437927,-250.0,0.00022,2]
[357420957,1744055437938,-1987.03,0.0002207,2]
[357420960,1744055437948,-500.0,0.00022073,2]
[357420963,1744055437959,-1327.69737552,0.0002208,2]
[357420998,1744055438446,-21900.89269957,0.0002208,2]
[357420999,1744055438460,-16696.9305309,0.0002208,2]
[357421000,1744055438513,-78.10234707,0.0002208,2]
[357421001,1744055438525,-500.54705975,0.0002208,2]
[357421002,1744055438663,-609.58413527,0.0002208,2]
[357421003,1744055438677,-822.49017547,0.0002208,2]
[357421004,1744055438721,-3265.57057,0.0002208,2]
[357421074,1744055440120,-9089.43331255,0.0002208,2]
[357421081,1744055440182,-413.58533474,0.0002208,2]
[357421088,1744055442604,-4540.0,0.0002208,2]
[357421089,1744055442804,-43733.33864043,0.0002208,2]
[357421110,1744055443409,-1963.15432555,0.0002208,2]
[357421113,1744055445431,-103465.979,0.0002208,2]
[357421114,1744055445507,-16.88009592,0.0002208,2]
[357421115,1744055445654,-5541.49536745,0.0002208,2]
[357421116,1744055445670,-717.79218015,0.0002208,2]
[357421119,1744055445775,-104896.76716206,0.0002208,2]
[357421121,1744055445786,-31995.3975427,0.00022095,2]
[357421123,1744055445795,-251.68149998,0.00022105,2]
[357421124,1744055445805,-172.09,0.00022111,2]
[357421126,1744055445814,-8948.8782781,0.00022132,2]
[357421127,1744055445825,-1195.28,0.00022147,2]
[357421128,1744055445837,-273.66285855,0.00022171,2]
[357421129,1744055445851,-506.75246483,0.00022171,2]
[357421130,1744055445861,-1000.0,0.00022172,2]
[357421131,1744055445871,-1507.70706326,0.00022204,2]
[357421132,1744055445883,-3123.86,0.00022212,2]
[357421133,1744055445893,-250.0,0.00022212,2]
[357421134,1744055445903,-1470.82,0.00022219,2]
[357421135,1744055445916,-733.11,0.00022223,2]
[357421136,1744055445927,-1470.82,0.00022225,2]
[357421137,1744055445936,-1470.82,0.00022231,2]
[357421138,1744055445946,-200.0,0.00022234,2]
[357421139,1744055445957,-1470.82,0.00022237,2]
[357421140,1744055445967,-4697.43,0.00022238,2]
[357421141,1744055445978,-1921.33,0.00022242,2]
[357421142,1744055445987,-1470.82,0.00022242,2]
[357421143,1744055445996,-1470.82,0.00022248,2]
[357421144,1744055446007,-1470.82,0.00022254,2]
[357421145,1744055446018,-1470.82,0.0002226,2]
[357421146,1744055446029,-250.0,0.00022264,2]
[357421147,1744055446040,-1470.82,0.00022266,2]
[357421148,1744055446051,-1470.82,0.00022272,2]
[357421149,1744055446064,-1470.82,0.00022277,2]
[357421150,1744055446077,-2000.0,0.00022278,2]
[357421151,1744055446089,-2186.20607281,0.00022278,2]
[357421152,1744055446101,-1470.82,0.00022283,2]
[357421153,1744055446113,-1470.82,0.00022289,2]
[357421154,1744055446124,-1470.82,0.00022295,2]
[357421155,1744055446136,-195.980887,0.00022295,2]
[357421156,1744055446146,-1470.82,0.00022301,2]
[357421157,1744055446157,-1470.82,0.00022307,2]
[357421158,1744055446167,-1470.82,0.00022312,2]
[357421159,1744055446179,-1470.82,0.00022318,2]
[357421160,1744055446189,-1470.82,0.00022324,2]
[357421161,1744055446201,-1470.82,0.0002233,2]
[357421162,1744055446211,-5282.13,0.00022338,2]
[357421163,1744055446222,-200.0,0.000224,2]
[357421164,1744055446233,-500.0,0.00022465,2]
[357421165,1744055446244,-5131.72,0.00022559,2]
[357421166,1744055446254,-166.44817394,0.00022575,2]
[357421167,1744055446265,-533.36,0.00022639,2]
[357421168,1744055446276,-150.0,0.00022639,2]
[357421169,1744055446286,-1084.76,0.00022639,2]
[357421170,1744055446297,-162.36,0.00022897,2]
[357421171,1744055446308,-3220.58245941,0.00022931,2]
[357421172,1744055446319,-350.0,0.00023,2]
[357421173,1744055446330,-250.0,0.00023085,2]
[357421174,1744055446341,-1397.58775925,0.000232,2]
[357421175,1744055446351,-165.05,0.00023287,2]
[357421176,1744055446361,-300.0,0.00023564,2]
[357421177,1744055446372,-2706.70586853,0.00023607,2]
[357421178,1744055446382,-497.15,0.00023836,2]
[357421179,1744055446395,-1921.33,0.00024506,2]
[357421180,1744055446406,-5928.41169034,0.00024593,2]
[357421181,1744055446417,-165.05,0.00024657,2]
[357421182,1744055446428,-1000.0,0.00024658,2]
[357421183,1744055446438,-1987.03,0.0002479,2]
[357421184,1744055446449,-46606.8166562,0.000248,2]
[357421185,1744055446459,-2026.38333288,0.00024863,2]
[357421186,1744055446469,-501.23696296,0.00024873,2]
[357421187,1744055446480,-501.77792923,0.00024873,2]
[357421188,1744055446491,-18237.4499959,0.0002488,2]
[357421189,1744055446502,-234.01549177,0.000249,2]
[357421190,1744055446513,-300.0,0.00024934,2]
[357421191,1744055446523,-1000.0,0.00024944,2]
[357421192,1744055446534,-3304.52139277,0.0002496,2]
[357421193,1744055446545,-400.0,0.00025,2]
[357421194,1744055446556,-160.48,0.0002521,2]
[357421195,1744055446566,-3304.52139277,0.00025432,2]
[357421196,1744055446577,-500.0,0.00025452,2]
[357421197,1744055446588,-150.99,0.00025786,2]
[357421198,1744055446598,-1471.7,0.00025786,2]
[357421199,1744055446609,-499.99,0.00025786,2]
[357421200,1744055446620,-151.75,0.00025786,2]
[357421201,1744055446631,-165.05,0.00026027,2]
[357421202,1744055446643,-195.980887,0.00026067,2]
[357421203,1744055446654,-2706.70586853,0.00026329,2]
[357421204,1744055446665,-162.36,0.00026676,2]
[357421205,1744055446675,-1921.33,0.00026769,2]
[357421206,1744055446686,-410.54048939,0.00026825,2]
[357421207,1744055446697,-150.59,0.00026849,2]
[357421208,1744055446708,-381.54,0.00026849,2]
[357421209,1744055446719,-450.0,0.00027,2]
[357421210,1744055446730,-5928.41169034,0.00027191,2]
[357421211,1744055446741,-165.05,0.00027397,2]
[357421212,1744055446752,-1165.43,0.00027397,2]
[357421213,1744055446763,-1000.0,0.00027552,5]
[357421214,1744055446774,-1000.0,0.00027715,2]
[357421215,1744055446785,-3304.52139277,0.00028757,2]
[357421216,1744055446796,-165.05,0.00028767,2]
[357421217,1744055446807,-1165.43,0.00028767,2]
[357421218,1744055446818,-160.48,0.00028812,2]
[357421219,1744055446833,-151.29,0.00028989,2]
[357421220,1744055446844,-3304.52139277,0.00028999,2]
[357421221,1744055446855,-500.0,0.00029,2]
[357421222,1744055446867,-13747.03,0.00029009,2]
[357421223,1744055446879,-1921.33,0.00029033,2]
[357421224,1744055446892,-2706.70586853,0.0002905,2]
[357421225,1744055446904,-500.0,0.000291,5]
[357421226,1744055446917,-153.04065958,0.000291,5]
[357421227,1744055446928,-503.0990967,0.000291,5]
[357421228,1744055446939,-502.35256817,0.000291,5]
[357421229,1744055446950,-500.0,0.000291,5]
[357421230,1744055446961,-500.0,0.000291,5]
[357421231,1744055446972,-573.5594448,0.000291,5]
[357421232,1744055446983,-500.0,0.000291,5]
[357421233,1744055446995,-500.0,0.000291,5]
[357421234,1744055447006,-501.42177442,0.000291,5]
[357421235,1744055447018,-500.0,0.000291,5]
[357421236,1744055447029,-500.0,0.000291,5]
[357421237,1744055447040,-636.83711825,0.000291,5]
[357421238,1744055447051,-5928.41169034,0.0002979,2]
[357421239,1744055447062,-6609.04278554,0.00029795,2]
[357421240,1744055447076,-195.980887,0.00029839,2]
[357421241,1744055447087,-234.01549177,0.000299,2]
[357421242,1744055447097,-212.0,0.0003,2]
[357421243,1744055447109,-165.05,0.00030136,2]
[357421244,1744055447120,-610.0,0.00030137,2]
[357421245,1744055447130,-1165.43,0.00030137,2]
[357421246,1744055447144,-1214.61,0.00030416,2]
[357421247,1744055447155,-1000.0,0.00030487,2]
[357421248,1744055447166,-3304.52139277,0.0003084,2]
[357421249,1744055447177,-500.0,0.0003085,5]
[357421250,1744055447188,-500.0,0.0003085,5]
[357421251,1744055447199,-550.0,0.00031,2]
[357421252,1744055447209,-1921.33,0.00031297,2]
[357421253,1744055447220,-165.05,0.00031506,2]
[357421254,1744055447231,-1165.43,0.00031507,2]
[357421255,1744055447241,-3304.52139277,0.00031713,2]
[357421256,1744055447252,-3304.52139277,0.00031762,2]
[357421257,1744055447263,-2706.70586853,0.00031772,2]
[357421258,1744055447274,-5928.41169034,0.00032388,2]
[357421259,1744055447285,-160.48,0.00032413,2]
[357421260,1744055447296,-381.54,0.00032646,2]
[357421261,1744055447307,-165.05,0.00032876,2]
[357421262,1744055447318,-1165.43,0.00032877,2]
[357421263,1744055447328,-600.0,0.00033,2]
[357421264,1744055447339,-200.0,0.00033151,2]
[357421265,1744055447349,-172.09,0.00033167,2]
[357421266,1744055447359,-1000.0,0.00033258,2]
[357421267,1744055447370,-1921.33,0.00033561,2]
[357421268,1744055447382,-195.980887,0.00033611,2]
[357421269,1744055447394,-410.54048939,0.0003375,5]
[357421270,1744055447405,-163.68300247,0.000339,6]
[357421271,1744055447416,-533.36,0.00033959,120]
[357421272,1744055447427,-165.05,0.00034246,2]
[357421273,1744055447439,-2706.70586853,0.00034493,2]
[357421274,1744055447450,-150.0,0.00034548,10]
[357421275,1744055447462,-1000.0,0.00034579,5]
[357421276,1744055447474,-251.10422398,0.00034579,5]
[357421277,1744055447485,-1000.0,0.00034579,5]
[357421278,1744055447502,-355.47783704,0.00034579,5]
[357421279,1744055447516,-234.01549177,0.000349,2]
[357421280,1744055447531,-1847.80144312,0.0003498,2]
[357421281,1744055447610,-151.20920124,0.0003498,2]
[357421282,1744055447691,-1305.51074841,0.0003498,2]
[357421283,1744055447704,-5928.41169034,0.00034986,2]
[357421284,1744055447717,-163.26,0.00035,2]
[357421285,1744055447729,-650.0,0.00035,2]
[357421286,1744055447742,-497.15,0.00035068,2]
[357421287,1744055447756,-301.64931533,0.00035338,5]
[357421288,1744055447770,-165.05,0.00035616,2]
[357421289,1744055447784,-369.37,0.00035671,120]
[357421290,1744055447798,-200.0,0.00035711,10]
[357421291,1744055447812,-3.27612047,0.00035712,10]
[357421292,1744055541887,200.0,0.00042845,30]
[357421293,1744055542558,207.4,0.00042845,30]
[357421294,1744055543369,215.0738,0.00042845,30]
[357421295,1744055543969,223.0315306,0.00042845,30]
[357421296,1744055544950,231.28369723,0.00042845,30]
[357421297,1744055545247,239.84119403,0.00042845,30]
[357421298,1744055545886,248.71531821,0.00042845,30]
[357421299,1744055547010,257.91778498,0.00042845,30]